bitfinex/quotes_ETHUSD_20251019
["timestamp","ask_amount","ask_price","bid_price","bid_amount"]
[1760912887690,0.1732,4017.9,4017.3,3.177]
[1760912887901,0.125,4017.9,4017.7,2.48894131]
[1760912888604,0.125,4017.9,4017.7,2.93694131]
[1760912889102,0.125,4017.9,4017.6,2.48902999]
[1760912889272,0.125,4017.9,4017.5,0.448]
[1760912889582,0.125,4017.9,4017.4,2.48914333]
[1760912890473,0.125,4017.9,4017.4,2.93714333]
[1760912890674,0.125,4017.9,4017.5,0.448]
[1760912892783,0.16836467,4017.9,4017.5,0.448]
[1760912893015,0.16836467,4017.9,4017.4,2.48914333]
[1760912893311,0.16836467,4017.9,4017.3,3.177]
[1760912893312,0.16836467,4017.9,4017.5,2.94090706]
[1760912893471,0.16836467,4017.9,4017.5,0.4518]
[1760912893873,0.16836467,4017.9,4017.6,2.48903304]
[1760912894303,0.16836467,4017.9,4017.7,2.94077769]
[1760912894716,0.16836467,4017.9,4017.7,5.66597769]
[1760912894903,0.16836467,4017.9,4017.8,0.4518]
[1760912895797,0.16836467,4017.9,4017.7,3.177]
[1760912896718,0.16836467,4017.9,4017.7,5.66597105]
[1760912896925,0.16836467,4017.9,4017.8,0.4518]
[1760912898023,0.16836467,4017.9,4017.7,5.66597105]
[1760912898024,0.16836467,4017.9,4017.7,3.177]
[1760912898223,0.16836467,4017.9,4017.8,0.4518]
[1760912898625,0.16836467,4017.9,4017.7,3.177]
[1760912898922,0.16836467,4017.9,4017.7,2.94073947]
[1760912899099,0.16836467,4017.9,4017.8,0.4518]
[1760912899295,0.04436467,4017.9,4017.8,2.94072428]
[1760912899523,0.04436467,4017.9,4017.8,3.80129066]
[1760912899691,0.001,4017.9,4017.8,3.80129066]
[1760912900922,0.001,4017.9,4017.8,3.8261799]
[1760912901123,0.001,4017.9,4017.8,3.80129066]
[1760912905142,0.001,4017.9,4017.8,7.62029066]
[1760912908027,0.001,4017.9,4017.8,3.819]
[1760912908219,0.001,4017.9,4017.8,9.48392428]
[1760912909643,0.001,4017.9,4017.8,9.93572428]
[1760912911051,0.001,4017.9,4017.8,6.11672428]
[1760912918879,0.001,4017.9,4017.8,5.66492428]
[1760912920532,0.001,4017.9,4017.8,6.10192428]
[1760912922484,0.001,4017.9,4017.8,2.48892428]
[1760912922683,0.001,4017.9,4017.8,5.66292428]
[1760912922914,0.001,4017.9,4017.8,6.09992428]
[1760912923115,0.001,4017.9,4017.8,6.97121748]
[1760912925218,0.001,4017.9,4017.8,5.66292428]
[1760912926015,0.001,4017.9,4017.8,6.09992428]
[1760912926604,0.001,4017.9,4017.7,0.124]
[1760912926605,0.0902,4017.9,4017.7,0.124]
[1760912926821,0.1892,4017.9,4017.8,3.174]
[1760912927008,0.93835971,4017.9,4017.8,3.174]
[1760912927528,0.93835971,4017.9,4017.3,0.124]
[1760912927695,0.83935971,4017.9,4017.6,2.48899117]
[1760912927902,0.0902,4017.9,4017.7,3.174]
[1760912928636,0.0902,4017.9,4017.7,5.66297777]
[1760912928848,0.001,4017.9,4017.7,5.66297777]
[1760912929134,0.001,4017.9,4017.7,3.174]
[1760912929845,0.001,4017.9,4017.7,5.66296879]
[1760912930534,0.04436205,4017.9,4017.7,5.66296879]
[1760912930725,0.04436205,4017.9,4017.7,3.174]
[1760912931032,0.13356205,4017.9,4017.7,3.174]
[1760912931343,0.02095398,4017.8,4017.7,3.174]
[1760912931641,0.74136997,4017.8,4017.7,3.174]
[1760912931799,0.13356205,4017.9,4017.7,3.174]
[1760912932603,0.04436205,4017.9,4017.8,2.48892428]
[1760912932805,0.04436205,4017.9,4017.8,2.51381352]
[1760912933004,0.04436205,4017.9,4017.8,2.92592428]
[1760912935032,0.001,4017.9,4017.8,3.04992428]
[1760912939345,0.224,4018.8,4017.8,3.04992428]
[1760912939346,0.001,4021.1,4021.0,3.12054354]
[1760912939515,0.0513,4023.3,4021.3,0.6336]
[1760912939716,0.0513,4023.3,4022.5,2.72201615]
[1760912939917,0.003,4023.5,4022.5,2.72201615]
[1760912939918,0.003,4023.5,4023.4,2.48546005]
[1760912940133,0.003,4023.5,4023.4,5.90444729]
[1760912940347,0.003,4023.5,4023.4,10.62830333]
[1760912940552,0.003,4023.5,4023.4,8.60827944]
[1760912941037,0.003,4023.5,4023.4,5.41927944]
[1760912941202,0.003,4023.5,4023.4,1.95798724]
[1760912941406,0.003,4023.5,4023.4,4.46830189]
[1760912941653,0.003,4023.5,4023.4,7.65830189]
[1760912941807,0.003,4023.5,4023.4,4.88044729]
[1760912942010,0.003,4023.5,4023.4,1.95798724]
[1760912942233,0.003,4023.5,4023.4,5.14798724]
[1760912942431,0.003,4023.5,4023.4,5.58498724]
[1760912943530,0.003,4023.5,4023.4,5.14698724]
[1760912944238,0.003,4023.5,4023.4,1.728]
[1760912944446,0.003,4023.5,4023.4,3.189]
[1760912944655,0.003,4024.9,4024.6,2.48471897]
[1760912944821,0.003,4024.9,4024.8,3.1181955]
[1760912945168,0.003,4024.9,4024.8,5.09750497]
[1760912945338,0.003,4024.9,4024.8,5.07265902]
[1760912945540,0.003,4024.9,4024.8,6.56358765]
[1760912945725,0.003,4024.9,4024.8,4.07899215]
[1760912946050,0.003,4024.9,4024.2,0.2327]
[1760912946344,0.3332,4024.8,4023.5,0.6336]
[1760912946548,0.0591,4024.9,4023.1,0.236]
[1760912946815,0.0591,4024.9,4021.0,2.48692251]
[1760912946816,0.001,4024.0,4022.9,0.467]
[1760912946955,0.5524,4023.9,4022.2,0.467]
[1760912947152,0.5524,4023.9,4021.7,0.336]
[1760912947344,0.5524,4023.9,4022.6,0.83185954]
[1760912947657,2.48527474,4023.7,4022.7,2.426]
[1760912947831,0.3321,4023.6,4022.8,3.207]
[1760912948021,0.3248064,4023.8,4022.2,0.2327]
[1760912948022,0.02095398,4023.8,4022.2,0.2327]
[1760912948228,0.2205,4022.9,4022.3,2.223]
[1760912948435,0.3321,4023.3,4022.4,3.206]
[1760912948657,0.2205,4023.1,4022.4,3.206]
[1760912948955,0.2205,4023.1,4022.5,1.728]
[1760912949255,0.2205,4023.6,4023.0,0.124]
[1760912949451,0.2205,4023.6,4023.1,3.206]
[1760912949755,0.3321,4023.5,4023.0,0.124]
[1760912949955,0.3321,4023.5,4023.1,3.205]
[1760912950130,0.3321,4023.5,4023.1,3.207]
[1760912952567,0.3321,4023.5,4022.3,2.95312873]
[1760912952568,0.3321,4023.4,4022.8,3.205]
[1760912952768,2.94156377,4023.4,4022.9,3.205]
[1760912953071,2.81762881,4023.3,4022.9,3.205]
[1760912953255,2.81769186,4023.2,4022.9,3.205]
[1760912953666,2.48559186,4023.2,4022.9,3.205]
[1760912953987,0.3321,4023.1,4022.9,3.205]
[1760912954327,0.3321,4023.1,4022.7,0.124]
[1760912954456,0.3321,4023.1,4022.8,3.206]
[1760912954859,2.48576999,4022.9,4022.7,0.124]
[1760912955095,0.3321,4022.8,4022.7,3.329]
[1760912955647,0.3321,4023.1,4022.7,3.329]
[1760912955848,0.3321,4023.0,4022.7,3.329]
[1760912956051,0.124,4023.4,4022.8,0.0248583]
[1760912956250,0.124,4023.7,4022.9,0.124]
[1760912956562,0.124,4023.7,4023.0,0.02485707]
[1760912956759,0.124,4023.7,4022.9,2.60974904]
[1760912956760,2.48545142,4023.5,4022.9,0.124]
[1760912956958,0.331,4023.4,4022.9,0.124]
[1760912957158,0.331,4023.3,4022.9,0.124]
[1760912957359,2.48551158,4023.4,4022.9,0.124]
[1760912957576,0.331,4023.2,4022.9,0.124]
[1760912957779,0.2940545,4023.2,4022.9,0.124]
[1760912957976,0.331,4023.1,4022.9,0.124]
[1760912959398,2.48570718,4023.0,4022.7,3.203]
[1760912959691,0.331,4022.9,4022.6,0.124]
[1760912960049,0.124,4023.2,4022.6,0.124]
[1760912960249,0.124,4023.2,4022.7,0.22577783]
[1760912960450,0.124,4023.2,4022.8,0.0248583]
[1760912960646,0.124,4023.6,4022.9,0.34977783]
[1760912960849,0.29403231,4023.5,4022.9,0.124]
[1760912961050,0.29403231,4023.5,4023.0,3.201]
[1760912961262,0.124,4023.6,4023.0,3.201]
[1760912961567,0.124,4023.6,4023.1,0.22609722]
[1760912961981,2.60926125,4023.8,4023.1,0.35009722]
[1760912962180,0.124,4023.8,4023.2,0.22609722]
[1760912963108,2.60923386,4023.8,4023.2,0.22609722]
[1760912963271,0.28316339,4023.7,4023.2,2.71162584]
[1760912963598,0.124,4023.8,4023.3,0.22609722]
[1760912964103,0.124,4023.8,4023.4,0.22609722]
[1760912964303,0.124,4023.8,4023.5,0.22609722]
[1760912964600,0.124,4023.8,4023.6,0.22683051]
[1760912964802,2.93882217,4023.8,4023.7,0.22683255]
[1760912965005,3.27710439,4023.8,4023.5,3.2]
[1760912965200,3.27710439,4023.8,4023.6,0.2268377]
[1760912965402,0.79188222,4023.8,4023.6,0.2268377]
[1760912966005,0.79188222,4023.8,4023.7,0.2268377]
[1760912966406,0.33828222,4023.8,4023.7,0.2268377]
[1760912966702,0.001,4024.0,4023.7,0.2268377]
[1760912966905,0.001,4024.0,4022.9,0.002]
[1760912966906,0.323,4023.9,4023.8,0.2268377]
[1760912967094,3.03265122,4023.9,4023.8,0.2268377]
[1760912967291,3.33811174,4023.9,4023.8,0.2268377]
[1760912968203,0.85296052,4023.9,4023.0,3.199]
[1760912968405,0.85296052,4023.9,4022.9,0.002]
[1760912968406,2.48558989,4023.2,4022.9,0.002]
[1760912968796,0.322,4023.1,4022.9,0.002]
[1760912969105,2.80733738,4023.6,4022.9,0.002]
[1760912969303,3.01514251,4023.9,4022.9,0.4519]
[1760912969816,2.48533763,4023.6,4022.9,0.002]
[1760912970013,0.322,4023.8,4022.9,0.002]
[1760912970310,2.80740919,4023.5,4022.9,0.002]
[1760912971112,2.48547565,4023.4,4022.9,0.002]
[1760912971315,0.5292817,4023.3,4022.9,0.002]
[1760912971813,2.48547565,4023.4,4022.9,0.002]
[1760912972022,0.322,4023.2,4022.9,0.002]
[1760912972392,2.48564999,4023.1,4022.9,0.002]
[1760912972598,0.322,4023.1,4022.9,0.002]
[1760912972805,0.322,4023.0,4022.9,0.002]
[1760912973521,3.08846674,4023.0,4022.9,0.002]
[1760912974411,1.29,4023.4,4022.9,0.002]
[1760912974986,1.612,4023.4,4022.9,0.002]
[1760912976198,1.29,4023.4,4022.9,0.002]
[1760912976396,0.124,4023.1,4022.9,0.002]
[1760912981140,1.414,4023.4,4023.0,0.4649]
[1760912981341,1.29,4023.4,4023.3,2.71002183]
[1760912981545,1.29,4023.4,4023.3,5.90402183]
[1760912981713,1.29,4023.4,4023.3,6.02802183]
[1760912982143,1.29,4023.4,4023.3,6.49292183]
[1760912982909,1.29,4023.7,4023.6,2.48533651]
[1760912983119,0.001,4024.0,4023.6,2.48533651]
[1760912983120,1.29,4023.9,4023.8,2.48521298]
[1760912983318,1.29,4023.9,4023.8,5.67921298]
[1760912983567,1.29,4023.9,4023.8,6.14411298]
[1760912984958,1.29,4023.9,4023.8,7.87211298]
[1760912985151,1.29,4023.9,4023.8,8.90785793]
[1760912985849,1.33329152,4023.9,4023.8,8.90785793]
[1760912987769,1.33329152,4023.9,4023.8,5.71385793]
[1760912988070,1.33329152,4023.9,4023.0,0.6894]
[1760912988271,1.87949152,4023.9,4023.6,2.48532661]
[1760912988439,1.8362,4023.9,4023.6,2.48532661]
[1760912988834,1.8362,4023.9,4023.0,0.6894]
[1760912988835,0.4446,4023.8,4023.0,0.2245]
[1760912989042,0.4446,4023.8,4023.4,2.48545751]
[1760912989244,1.3881,4023.9,4023.5,3.191]
[1760912989555,1.3881,4023.9,4023.5,5.67634997]
[1760912989938,0.4446,4023.8,4023.4,2.48543081]
[1760912990154,0.4446,4023.7,4023.6,3.191]
[1760912990770,1.52701,4023.9,4023.6,3.191]
[1760912991071,1.97161,4023.9,4023.6,3.191]
[1760912991267,0.4446,4023.8,4023.6,3.191]
[1760912991936,0.4446,4023.7,4022.9,3.192]
[1760912992139,2.48541867,4023.5,4022.9,3.192]
[1760912992354,0.4446,4023.4,4022.9,3.192]
[1760912992547,0.4446,4023.3,4022.9,3.192]
[1760912992864,0.4446,4023.2,4022.9,3.192]
[1760912993172,0.4446,4023.1,4022.9,3.192]
[1760912993364,0.124,4023.2,4022.9,0.002]
[1760912993671,0.124,4023.2,4023.0,3.19]
[1760912993979,0.4446,4023.1,4022.9,0.002]
[1760912994570,0.4446,4023.0,4022.9,0.002]
[1760912994944,0.124,4023.2,4022.9,0.002]
[1760912995140,0.4446,4023.0,4022.9,0.002]
[1760912995468,0.38495285,4023.2,4022.9,0.002]
[1760912995681,0.82955285,4023.2,4022.9,0.002]
[1760912995867,0.4446,4023.1,4022.9,0.002]
[1760912996648,0.4446,4023.0,4022.9,0.002]
[1760912996859,0.76371612,4023.0,4022.9,0.002]
[1760912997072,3.2494233,4023.0,4022.9,0.002]
[1760912997473,0.31911612,4023.0,4022.9,0.002]
[1760912997854,0.4446,4023.3,4022.9,0.002]
[1760912998253,0.197261,4023.8,4022.9,0.002]
[1760912998254,2.48570718,4023.0,4022.9,0.002]
[1760912998744,2.93030718,4023.0,4022.9,0.002]
[1760913000392,1.728,4023.7,4022.9,0.002]
[1760913000696,2.93030718,4023.0,4022.9,0.002]
[1760913001068,2.95126116,4023.0,4022.9,0.002]
[1760913001294,2.93030718,4023.0,4022.9,0.002]
[1760913002962,2.97362255,4023.0,4022.9,0.002]
[1760913003162,2.52902255,4023.0,4022.9,0.002]
[1760913003359,3.47508404,4023.0,4022.9,0.002]
[1760913006393,5.20308404,4023.0,4022.9,0.002]
[1760913006595,5.15976867,4023.0,4022.9,0.002]
[1760913008488,5.79336867,4023.0,4022.9,0.002]
[1760913009307,4.71516867,4023.0,4022.9,0.002]
[1760913009507,7.89916867,4023.0,4022.9,0.002]
[1760913010011,0.24057977,4023.8,4022.9,0.002]
[1760913010217,2.485515,4023.4,4022.9,0.002]
[1760913010506,2.48552334,4023.3,4022.9,0.002]
[1760913010692,2.48569492,4023.1,4022.9,0.002]
[1760913011507,1.728,4023.4,4022.9,0.002]
[1760913011708,2.48561385,4023.2,4022.9,0.002]
[1760913011910,0.42136139,4023.1,4022.9,0.002]
[1760913012411,2.48570718,4023.0,4022.9,0.002]
[1760913012610,0.42136139,4023.1,4022.9,0.002]
[1760913012915,2.90701512,4023.1,4022.9,0.002]
[1760913013482,2.95033005,4023.1,4022.9,0.002]
[1760913013714,0.295033,4023.0,4022.9,0.002]
[1760913018890,0.04331493,4023.1,4022.9,0.002]
[1760913019100,1.29,4023.9,4023.1,2.48562299]
[1760913019303,0.124,4023.5,4023.2,3.16786456]
[1760913019506,0.124,4023.5,4023.3,0.4517]
[1760913019906,0.124,4023.5,4023.2,2.71616456]
[1760913020106,0.124,4023.5,4023.4,0.4517]
[1760913020695,0.124,4023.5,4022.9,0.126]
[1760913020895,2.48553111,4023.3,4022.9,0.002]
[1760913021097,0.14495398,4023.2,4022.9,0.002]
[1760913021416,2.48564539,4023.1,4022.9,0.002]
[1760913021798,2.48564702,4023.1,4022.9,0.002]
[1760913022214,2.79749416,4023.2,4022.9,0.002]
[1760913022411,0.3119,4023.2,4022.9,0.002]
[1760913022822,0.90964239,4023.2,4022.9,0.002]
[1760913023028,0.59774239,4023.2,4022.9,0.002]
[1760913023230,0.3119,4023.1,4022.9,0.002]
[1760913023440,0.66200955,4023.2,4022.9,0.002]
[1760913023604,0.04331318,4023.2,4023.0,0.4517]
[1760913023934,0.124,4023.8,4023.1,1.10024239]
[1760913024102,1.26095398,4023.9,4022.9,0.002]
[1760913024302,0.124,4023.5,4022.9,0.126]
[1760913024709,0.124,4023.5,4023.2,2.48558124]
[1760913024913,0.124,4023.5,4023.3,0.2306]
[1760913025124,0.124,4023.5,4023.3,0.6823]
[1760913025299,0.16730613,4023.5,4023.0,2.48565139]
[1760913025504,0.16730613,4023.5,4023.2,0.2306]
[1760913025827,0.16730613,4023.5,4023.3,0.4517]
[1760913026030,0.04330613,4023.5,4023.4,2.93716005]
[1760913026254,1.23095398,4023.9,4023.4,2.96201465]
[1760913026536,1.23095398,4023.9,4023.8,3.11881298]
[1760913026758,1.23095398,4023.9,4023.8,1.09718155]
[1760913026919,1.23095398,4023.9,4023.2,0.6823]
[1760913027127,1.46085398,4023.9,4022.4,0.002]
[1760913027320,1.46085398,4023.9,4022.9,0.4537]
[1760913027652,1.46085398,4023.9,4023.0,2.4856994]
[1760913027804,1.46085398,4023.9,4022.9,0.4537]
[1760913028009,1.46085398,4023.9,4022.9,3.6477]
[1760913028259,1.46085398,4023.9,4023.0,2.48570685]
[1760913028616,0.4366,4023.8,4022.9,2.48776259]
[1760913029119,3.94601604,4023.9,4022.9,0.002]
[1760913029120,2.92187474,4023.7,4022.9,0.002]
[1760913029425,2.48550123,4023.4,4022.9,0.002]
[1760913029667,0.04330881,4023.6,4022.9,0.002]
[1760913029873,4.65385398,4023.9,4023.0,2.93740718]
[1760913030034,0.4366,4023.8,4022.9,0.002]
[1760913030376,2.48535965,4023.6,4022.9,0.002]
[1760913030673,2.48553087,4023.3,4022.9,0.002]
[1760913031172,0.4366,4023.8,4022.9,0.002]
[1760913031369,2.48533652,4023.6,4022.9,0.002]
[1760913031550,2.48540221,4023.5,4022.9,0.002]
[1760913032170,0.4366,4023.4,4022.9,0.002]
[1760913032473,1.23095398,4023.9,4023.5,2.48534107]
[1760913032674,1.23095398,4023.9,4023.8,2.48521298]
[1760913032874,1.23095398,4023.9,4023.8,4.66491298]
[1760913033077,1.23095398,4023.9,4023.3,11.40574406]
[1760913033078,1.23095398,4023.9,4022.3,0.4517]
[1760913033372,1.89755398,4023.9,4022.7,0.4517]
[1760913033573,1.89755398,4023.9,4022.8,2.48582075]
[1760913033774,1.89755398,4023.9,4022.8,2.4858244]
[1760913034236,1.89755398,4023.9,4022.7,0.4517]
[1760913034439,1.89755398,4023.9,4023.0,2.48570499]
[1760913034670,1.23095398,4023.9,4023.1,6.40057722]
[1760913034979,1.23095398,4023.9,4023.1,3.8901]
[1760913035276,0.001,4025.2,4025.1,4.34240661]
[1760913035437,0.001,4025.2,4025.1,7.57140661]
[1760913035640,0.001,4025.2,4025.1,7.57640661]
[1760913035845,0.001,4025.2,4025.1,4.34240661]
[1760913036072,0.001,4025.2,4025.1,7.57740661]
[1760913036262,0.001,4025.2,4025.1,1.98199629]
[1760913036469,0.001,4025.2,4025.1,7.70140661]
[1760913037177,0.001,4025.2,4025.1,7.70040661]
[1760913037564,0.001,4025.2,4025.1,0.25399629]
[1760913038653,0.001,4025.2,4025.1,2.73840661]
[1760913038855,0.001,4025.2,4025.1,0.12999629]
[1760913039083,0.001,4025.2,4025.1,3.36199629]
[1760913039378,0.001,4025.2,4025.1,0.12999629]
[1760913039379,0.4713,4025.2,4025.1,0.12999629]
[1760913040448,0.4713,4025.2,4024.4,2.48483587]
[1760913040691,0.2179,4024.5,4023.1,0.2164]
[1760913041181,2.48509162,4024.0,4022.9,3.236]
[1760913041380,0.4703,4024.4,4022.9,3.236]
[1760913041677,2.48491548,4024.3,4023.1,2.4856405]
[1760913041882,2.48491548,4024.3,4023.2,2.48558135]
[1760913042257,0.4703,4024.4,4023.3,2.48550168]
[1760913042464,0.4703,4024.4,4023.0,4.21366608]
[1760913042786,2.95520999,4024.3,4023.1,2.48564539]
[1760913042949,0.4703,4024.2,4023.0,1.728]
[1760913043462,0.4703,4024.2,4023.2,2.48552317]
[1760913043657,2.95538317,4024.1,4023.0,1.728]
[1760913043872,0.4703,4024.0,4023.0,2.48568898]
[1760913044074,0.4703,4024.0,4022.9,3.236]
[1760913044272,0.2179,4024.5,4023.0,0.02485707]
[1760913044597,0.2179,4024.5,4023.6,2.48532665]
[1760913044768,0.2179,4024.5,4023.7,3.232]
[1760913044968,0.2179,4024.5,4023.8,2.48519794]
[1760913045388,0.2179,4024.5,4023.9,2.4851323]
[1760913046303,0.04329742,4024.7,4023.7,3.232]
[1760913046304,0.04329742,4024.7,4024.6,2.48471897]
[1760913046470,0.001,4025.2,4024.6,3.233]
[1760913046673,0.001,4025.2,4025.1,2.48441032]
[1760913047978,0.001,4025.2,4024.4,2.48479843]
[1760913048179,0.001,4025.2,4024.4,2.48480054]
[1760913048384,0.001,4025.2,4024.6,2.48471641]
[1760913048700,0.001,4025.2,4024.6,5.71571641]
[1760913048900,0.125,4025.2,4024.6,5.71571641]
[1760913049274,0.125,4025.2,4024.7,2.48465504]
[1760913049674,0.4703,4025.1,4024.5,0.124]
[1760913050004,0.001,4025.2,4024.3,2.4849006]
[1760913050192,0.001,4025.2,4024.4,2.48478712]
[1760913050508,0.001,4025.2,4024.5,2.4847677]
[1760913050704,0.001,4025.2,4024.3,2.48484327]
[1760913051010,0.001,4025.2,4024.1,3.229]
[1760913051197,0.001,4025.2,4024.7,2.48465432]
[1760913053213,0.001,4025.2,4024.8,3.226]
[1760913053417,0.001,4025.2,4025.1,2.48441032]
[1760913053578,0.2179,4024.9,4023.2,1.728]
[1760913053783,0.2179,4024.9,4023.7,1.282]
[1760913053977,0.2179,4024.9,4024.3,2.48489529]
[1760913054184,0.2179,4024.9,4023.5,2.48535785]
[1760913054185,0.2179,4024.9,4024.4,3.225]
[1760913054479,0.2179,4024.9,4024.4,5.70983431]
[1760913054700,0.4703,4025.1,4024.5,2.48478071]
[1760913054895,0.4703,4025.1,4023.6,0.002]
[1760913055102,0.4703,4025.1,4024.5,2.48477632]
[1760913055498,0.4703,4025.1,4024.6,2.48471017]
[1760913055907,0.4703,4025.1,4024.4,2.48478336]
[1760913056311,0.4703,4025.1,4024.5,2.48477821]
[1760913056806,0.4703,4025.1,4024.4,2.48479792]
[1760913057208,0.4703,4025.1,4024.5,2.48477063]
[1760913058096,0.001,4025.2,4023.6,0.002]
[1760913058282,0.001,4025.2,4024.3,2.48489743]
[1760913058480,0.001,4025.2,4025.0,2.4844487]
[1760913058794,0.001,4025.2,4025.0,3.242]
[1760913059313,0.001,4025.2,4024.8,2.48456431]
[1760913059491,0.001,4025.2,4025.1,2.48441032]
[1760913059897,0.001,4025.2,4025.1,2.60841032]
[1760913060798,0.04427913,4025.2,4025.1,5.84941032]
[1760913061594,0.04427913,4025.2,4025.1,2.60841032]
[1760913061813,0.04427913,4025.2,4025.1,5.84841032]
[1760913063023,0.04427913,4025.2,4025.1,2.60841032]
[1760913063221,0.04427913,4025.2,4025.1,5.84841032]
[1760913065634,0.001,4025.2,4025.1,5.84841032]
[1760913066730,0.001,4025.2,4025.1,5.84441032]
[1760913066899,0.001,4025.2,4025.1,3.36]
[1760913067105,0.4321,4025.2,4024.6,0.002]
[1760913067430,0.2262,4024.7,4024.6,0.002]
[1760913067631,0.4321,4025.2,4024.6,0.002]
[1760913067833,0.2262,4024.8,4024.6,0.002]
[1760913068308,0.4311,4024.7,4024.6,0.002]
[1760913068806,0.4311,4024.7,4024.2,0.002]
[1760913069203,2.48472429,4024.6,4024.2,0.002]
[1760913069403,2.48478986,4024.5,4024.2,0.002]
[1760913069599,0.4311,4024.5,4024.2,0.002]
[1760913069817,2.91592978,4024.5,4024.2,0.002]
[1760913070209,2.48486309,4024.4,4024.2,0.002]
[1760913070637,0.4311,4024.3,4024.2,0.002]
[1760913071143,2.9160042,4024.3,4024.2,0.002]
[1760913073047,6.1480042,4024.3,4024.2,0.002]
[1760913075754,6.1460042,4024.3,4024.2,0.002]
[1760913078970,3.6611,4024.3,4024.2,0.002]
[1760913079167,6.1460042,4024.3,4024.2,0.002]
[1760913079335,3.227,4024.3,4024.2,0.002]
[1760913079538,5.7119042,4024.3,4024.2,0.002]
[1760913082876,6.1495042,4024.3,4024.2,0.002]
[1760913083537,3.11856595,4024.2,4024.1,0.002]
[1760913083833,4.84681298,4023.8,4023.7,0.002]
[1760913084087,8.07081298,4023.8,4023.7,0.002]
[1760913084366,3.11906005,4023.4,4023.3,0.002]
[1760913084556,6.34306005,4023.4,4023.3,0.002]
[1760913084765,6.78066005,4023.4,4023.3,0.002]
[1760913086563,8.50866005,4023.4,4023.3,0.002]
[1760913087442,3.11918361,4023.2,4023.1,1e-08]
[1760913087645,16.55583466,4023.2,4023.1,1e-08]
[1760913087857,16.99343466,4023.2,4023.1,1e-08]
[1760913088554,20.21643466,4023.2,4023.1,1e-08]
[1760913095471,4.21358361,4023.2,4023.1,1e-08]
[1760913095962,7.43158361,4023.2,4023.1,1e-08]
[1760913097279,4.21358361,4023.2,4023.1,1e-08]
[1760913097484,8.53198361,4023.2,4023.1,1e-08]
[1760913099886,8.06618361,4023.2,4023.1,1e-08]
[1760913102311,8.53298361,4023.2,4023.1,1e-08]
[1760913102512,20.24163466,4023.2,4023.1,1e-08]
[1760913113269,19.77483466,4023.2,4023.1,1e-08]
[1760913113827,20.24163466,4023.2,4023.1,1e-08]
[1760913116778,20.24163466,4023.2,4022.6,1e-08]
[1760913116779,2.48589255,4022.7,4022.6,1e-08]
[1760913117069,7.41989255,4022.7,4022.6,1e-08]
[1760913117451,7.88669255,4022.7,4022.6,1e-08]
[1760913117954,8.52029255,4022.7,4022.6,1e-08]
[1760913118141,3.11986339,4022.1,4021.0,0.0103]
[1760913118344,19.76151444,4022.1,4020.6,0.0103]
[1760913118543,20.22831444,4022.1,4020.6,0.0103]
[1760913120748,4.84786339,4022.1,4021.0,0.0103]
[1760913121068,8.51866339,4022.1,4018.9,0.007]
[1760913121366,8.51866339,4022.1,4020.1,0.0103]
[1760913121525,8.56199976,4022.1,4020.4,0.0103]
[1760913121940,8.56199976,4022.1,4017.8,2.99140809]
[1760913122134,8.56199976,4022.1,4020.3,0.0103]
[1760913122532,8.56199976,4022.1,4020.7,0.0103]
[1760913123725,8.09519976,4022.1,4020.7,0.0103]
[1760913123931,8.09519976,4022.1,4021.1,0.0103]
[1760913124237,8.09519976,4022.1,4021.3,0.0103]
[1760913124761,8.09519976,4022.1,4020.8,0.0103]
[1760913124762,8.56199976,4022.1,4020.8,0.0103]
[1760913125061,8.09519976,4022.1,4021.1,0.0103]
[1760913125435,8.09519976,4022.1,4021.4,0.0103]
[1760913126049,8.09519976,4022.1,4020.9,0.0103]
[1760913126253,8.54719976,4022.1,4020.6,0.0103]
[1760913126464,8.54719976,4022.1,4020.5,0.0103]
[1760913127129,2.48719096,4020.6,4020.5,0.0103]
[1760913127343,5.68919096,4020.6,4020.1,0.0103]
[1760913127543,3.202,4020.6,4020.2,0.0103]
[1760913127866,2.48725565,4020.5,4020.2,0.0103]
[1760913128070,2.48732604,4020.4,4019.2,2.48800076]
[1760913128371,2.48731469,4020.4,4020.3,0.0103]
[1760913129074,2.48740447,4020.3,4019.8,0.0103]
[1760913129273,5.68840447,4020.3,4018.9,1.728]
[1760913129575,3.201,4020.3,4019.7,2.4877462]
[1760913129775,3.201,4020.3,4019.8,0.0103]
[1760913131475,3.201,4020.3,4019.6,2.48780411]
[1760913131676,3.201,4020.3,4019.9,0.0103]
[1760913132247,3.201,4020.3,4020.0,0.0103]
[1760913132447,5.68838067,4020.3,4019.6,2.48780411]
[1760913132648,3.201,4020.3,4019.7,0.0103]
[1760913133185,5.6883887,4020.3,4019.7,0.0103]
[1760913133388,3.201,4020.3,4019.7,0.0103]
[1760913133564,5.68838473,4020.3,4019.7,0.0103]
[1760913134348,3.201,4020.3,4019.7,0.0103]
[1760913134676,2.48743843,4020.2,4019.1,2.48808532]
[1760913134880,3.201,4020.3,4019.5,0.0103]
[1760913135056,3.201,4020.3,4018.2,3.819]
[1760913135057,2.48750031,4020.1,4019.1,2.49839978]
[1760913135258,2.48783908,4019.6,4018.5,1.728]
[1760913135457,2.48783128,4019.6,4018.9,0.0103]
[1760913135663,2.48783128,4019.6,4019.5,0.002]
[1760913137265,2.91943128,4019.6,4019.5,0.002]
[1760913137975,2.48783128,4019.6,4019.5,0.002]
[1760913139190,3.55303128,4019.6,4019.5,0.002]
[1760913139386,5.28103128,4019.6,4019.5,0.002]
[1760913139883,16.70864542,4019.6,4019.5,0.002]